fUST/lending_fUST_20250918
["ID","MTS","AMOUNT","RATE_DAILY","PERIOD"]
[385926570,1758136252697,-1500.0,0.000261,2]
[385926572,1758136252706,-1500.0,0.000261,2]
[385926573,1758136252716,-1897.28,0.000261,2]
[385926575,1758136252725,-1500.0,0.000261,2]
[385926577,1758136252734,-2988.22,0.00026116,3]
[385926579,1758136252744,-480.0,0.00026116,3]
[385926581,1758136252754,-1250.13,0.00026116,3]
[385926583,1758136252763,-1290.2,0.00026124,3]
[385926585,1758136252773,-480.0,0.00026124,3]
[385926587,1758136252783,-480.0,0.00026284,3]
[385926589,1758136252793,-751.82,0.00026284,3]
[385926591,1758136252803,-1007.4,0.00026296,3]
[385926593,1758136252813,-453.03817202,0.00026296,3]
[385926595,1758136252822,-628.37,0.00026296,3]
[385926597,1758136252832,-873.36,0.00026296,3]
[385926599,1758136252841,-480.0,0.00026296,3]
[385926601,1758136252851,-222.5,0.00026296,3]
[385926603,1758136252861,-1215.82,0.00026297,3]
[385926605,1758136252870,-480.0,0.00026297,3]
[385926607,1758136252879,-673.86,0.00026297,3]
[385926609,1758136252890,-480.0,0.00026297,3]
[385926611,1758136252900,-480.0,0.00026297,3]
[385926613,1758136252909,-480.0,0.00026297,3]
[385926615,1758136252918,-480.0,0.00026297,3]
[385926617,1758136252927,-635.91,0.00026297,3]
[385926619,1758136252936,-480.0,0.00026297,3]
[385926621,1758136252946,-480.0,0.00026297,3]
[385926623,1758136252955,-480.0,0.00026297,3]
[385926625,1758136252964,-669.65,0.00026297,3]
[385926627,1758136252974,-985.34,0.00026298,3]
[385926629,1758136252984,-480.0,0.00026298,3]
[385926631,1758136252994,-1950.79,0.00026298,3]
[385926633,1758136253004,-591.79,0.00026298,3]
[385926635,1758136253014,-500.0,0.00026302,2]
[385926637,1758136253023,-639.11,0.00026311,3]
[385926639,1758136253032,-7999.59,0.00026312,3]
[385926641,1758136253041,-480.0,0.00026312,3]
[385926643,1758136253051,-725.15,0.00026312,3]
[385926645,1758136253060,-480.0,0.00026363,3]
[385926647,1758136253069,-513.66,0.00026363,3]
[385926649,1758136253079,-480.0,0.00026372,3]
[385926651,1758136253089,-1745.38,0.00026372,3]
[385926653,1758136253098,-2988.22,0.0002639,3]
[385926655,1758136253108,-480.0,0.0002639,3]
[385926657,1758136253118,-1250.13,0.0002639,3]
[385926659,1758136253128,-1290.2,0.00026398,3]
[385926661,1758136253139,-480.0,0.00026398,3]
[385926663,1758136253149,-24668.16977269,0.00026444,2]
[385926667,1758136253223,-2316.98937963,0.00026444,2]
[385926668,1758136253328,-352.14524183,0.00026286,3]
[385926677,1758136253532,-160.0,0.00023841,2]
[385926679,1758136253542,-127.85475817,0.00026286,3]
[385926681,1758136253551,-1326.14143783,0.00026444,2]
[385926683,1758136253562,-563.21139385,0.00026444,2]
[385926685,1758136253574,-898.0,0.00026444,2]
[385926687,1758136253584,-10370.27859128,0.00026444,2]
[385926696,1758136253659,-413.00618529,0.00023556,3]
[385926698,1758136253668,-4890.36399713,0.00026444,2]
[385926700,1758136253679,-669.966851,0.00026444,2]
[385926703,1758136253695,-11661.55660325,0.00026444,2]
[385926774,1758136254371,-1987.855937,0.00026444,2]
[385926779,1758136254416,150.0,0.00021943,2]
[385926782,1758136254444,150.0,0.00022988,2]
[385928694,1758136273988,153.0,0.00027726,30]
[385931070,1758136316797,150.0,0.00021828,2]
[385931071,1758136317259,150.0,0.00022868,2]
[385931072,1758136333815,153.0,0.00027726,30]
[385931073,1758136349478,5000.0,0.00028,30]
[385931074,1758136349982,213.7177387,0.00022282,2]
[385931075,1758136383381,150.0,0.00021842,2]
[385931077,1758136410559,500.0,0.000223,2]
[385931078,1758136422044,500.0,0.000223,2]
[385931079,1758136543539,162.2588679,0.00027452,30]
[385931080,1758136790847,244.703013,0.00022271,2]
[385931082,1758136837590,-1200.0,0.00023182,2]
[385931083,1758136837738,-4547.04637811,0.00023183,2]
[385931084,1758136837770,-4212.77274452,0.00023183,2]
[385931085,1758136837798,-300.0,0.00023269,2]
[385931086,1758136837828,-300.0,0.00023269,2]
[385931087,1758136837890,-374.46451096,0.0002327,3]
[385931088,1758136838028,-105.53548904,0.0002327,3]
[385931089,1758136838059,-480.0,0.0002327,3]
[385931090,1758136838088,-480.0,0.0002327,3]
[385931091,1758136838118,-546.24,0.0002327,3]
[385931092,1758136838148,-787.81,0.0002327,3]
[385931093,1758136838293,-480.0,0.0002327,3]
[385931094,1758136838322,-480.0,0.0002327,3]
[385931095,1758136838351,-503.08,0.0002327,3]
[385931096,1758136838380,-704.75,0.0002327,3]
[385931097,1758136838408,-385.17902192,0.0002327,3]
[385931098,1758136838557,-94.82097808,0.0002327,3]
[385931099,1758136862896,480.0,0.0002327,3]
[385931100,1758136870942,480.0,0.0002327,3]
[385931101,1758136879601,480.0,0.0002327,3]
[385931102,1758136886096,480.0,0.0002327,3]
[385931103,1758136887548,586.13,0.0002327,3]
[385931104,1758136898354,480.0,0.0002327,3]
[385931105,1758136905486,480.0,0.0002327,3]
[385931106,1758136907869,480.0,0.0002327,3]
[385931107,1758136914463,480.0,0.0002327,3]
[385931108,1758136917253,177.39800376,0.00022572,2]
[385931109,1758136917598,-500.0,0.0002327,2]
[385931110,1758136917629,-500.0,0.0002327,2]
[385931111,1758136917658,-153.13388744,0.0002327,2]
[385931112,1758136917685,-500.0,0.0002327,2]
[385931113,1758136917857,-500.0,0.0002327,2]
[385931114,1758136917885,-500.0,0.0002327,2]
[385931115,1758136917912,-500.0,0.0002327,2]
[385931116,1758136917939,-500.0,0.0002327,2]
[385931117,1758136917968,-500.0,0.0002327,2]
[385931118,1758136917996,-500.0,0.0002327,2]
[385931119,1758136918028,-193.74222512,0.0002327,2]
[385931120,1758136927571,-300.0,0.00023269,2]
[385931121,1758136927601,-480.0,0.0002327,3]
[385931122,1758136928395,480.0,0.0002327,3]
[385931124,1758136932274,480.0,0.0002327,3]
[385931125,1758136935115,480.0,0.0002327,3]
[385931126,1758136959232,166.865411,0.00028,30]
[385931127,1758136987837,-300.0,0.00023269,2]
[385931128,1758136987865,-480.0,0.0002327,3]
[385931129,1758136987896,-838.93,0.0002327,3]
[385931130,1758136987925,-480.0,0.0002327,3]
[385931131,1758136987955,-480.0,0.0002327,3]
[385931132,1758136987985,-480.0,0.0002327,3]
[385931133,1758136988014,-480.0,0.0002327,3]
[385931134,1758137037770,-534.48,0.0002327,3]
[385931135,1758137037799,-480.0,0.0002327,3]
[385931136,1758137037826,-480.0,0.0002327,3]
[385931137,1758137037858,-748.16,0.0002327,3]
[385931138,1758137037885,-480.0,0.0002327,3]
[385931139,1758137037914,-480.0,0.0002327,3]
[385931140,1758137041920,480.0,0.0002327,3]
[385931141,1758137042911,480.0,0.0002327,3]
[385931142,1758137046140,300.0,0.00023269,2]
[385931143,1758137094856,-480.0,0.0002327,3]
[385931144,1758137094885,-480.0,0.0002327,3]
[385931145,1758137094915,-569.76,0.0002327,3]
[385931146,1758137094944,-480.0,0.0002327,3]
[385931147,1758137094985,-480.0,0.0002327,3]
[385931148,1758137095018,-480.0,0.0002327,3]
[385931149,1758137095049,-1151.54,0.0002327,3]
[385931150,1758137095085,-480.0,0.0002327,3]
[385931151,1758137100079,480.0,0.0002327,3]
[385931152,1758137100849,317.41,0.0002327,3]
[385931153,1758137100871,162.59,0.0002327,3]
[385931154,1758137101800,300.0,0.00023269,2]
[385931160,1758137134946,-300.0,0.00023269,2]
[385931161,1758137134977,-480.0,0.00023269,3]
[385931162,1758137135009,-480.0,0.00023269,3]
[385931163,1758137135039,-480.0,0.0002327,3]
[385931164,1758137135069,-480.0,0.0002327,3]
[385931165,1758137135100,-480.0,0.0002327,3]
[385931166,1758137135130,-407.12969967,0.0002327,3]
[385931167,1758137135163,-480.0,0.0002327,3]
[385931168,1758137135194,-480.0,0.0002327,3]
[385931169,1758137136545,860.14,0.0002327,3]
[385931170,1758137137018,625.63,0.00023269,3]
[385931171,1758137137435,379.98060066,0.0002327,3]
[385931172,1758137137458,100.01939934,0.0002327,3]
[385931175,1758137255747,10000.01,0.000219,2]
[385931176,1758137255774,10000.01,0.000219,2]
[385931177,1758137255797,10000.01,0.000219,2]
[385931178,1758137255820,10000.01,0.000219,2]
[385931179,1758137255842,10000.01,0.000219,2]
[385931180,1758137255864,10000.01,0.000219,2]
[385931181,1758137255886,10000.01,0.000219,2]
[385931182,1758137255907,6294.41951261,0.000219,2]
[385931187,1758137281877,150.0,0.00021868,2]
[385931188,1758137282382,150.0,0.00022909,2]
[385931190,1758137316597,1272.78831604,0.00024,60]
[385931191,1758137319257,217.38530857,0.00023169,2]
[385931193,1758137320206,1697.40672244,0.00023169,2]
[385931196,1758137355554,150.0,0.00021855,2]
[385931197,1758137355973,150.0,0.00022896,2]
[385931198,1758137358436,150.0,0.00023074,30]
[385931199,1758137364744,1190.79845638,0.00023,2]
[385931200,1758137364765,5310.17174851,0.00023,2]
[385931201,1758137422949,150.0,0.00021863,2]
[385931202,1758137423367,150.0,0.00022904,2]
[385931203,1758137424331,150.0,0.00022976,30]
[385931263,1758137432579,-300.0,0.00023268,2]
[385931265,1758137432589,-300.0,0.00023268,2]
[385931267,1758137432598,-845.95,0.00023269,3]
[385931269,1758137432607,-480.0,0.00023269,3]
[385931270,1758137432616,-538.4,0.00023269,3]
[385931272,1758137432626,-789.77,0.00023269,3]
[385931274,1758137432635,-480.0,0.00023269,3]
[385931276,1758137432646,-480.0,0.00023269,3]
[385931277,1758137432655,-480.0,0.00023269,3]
[385931278,1758137432667,-480.0,0.00023269,3]
[385931279,1758137432676,-480.0,0.00023269,3]
[385931280,1758137432686,-630.89,0.00023269,3]
[385931282,1758137432695,-480.0,0.00023269,3]
[385931283,1758137432705,-529.47821025,0.00023269,3]
[385931285,1758137432714,-480.0,0.00023269,3]
[385931286,1758137432723,-498.34,0.00023269,3]
[385931287,1758137432733,-480.0,0.00023269,3]
[385931288,1758137432742,-480.0,0.00023269,3]
[385931289,1758137432751,-480.0,0.0002327,3]
[385931290,1758137432760,-2560.5940113,0.0002327,2]
[385931291,1758137432769,-480.0,0.0002327,3]
[385931292,1758137432780,-1103.56,0.0002327,3]
[385931293,1758137432789,-480.0,0.0002327,3]
[385931294,1758137432798,-480.0,0.0002327,3]
[385931295,1758137432809,-480.0,0.0002327,3]
[385931296,1758137432820,-480.0,0.0002327,3]
[385931297,1758137432829,-480.0,0.0002327,3]
[385931298,1758137432838,-480.0,0.0002327,3]
[385931299,1758137432847,-480.0,0.0002327,3]
[385931300,1758137432858,-1823.2,0.0002327,3]
[385931301,1758137432867,-480.0,0.0002327,3]
[385931302,1758137432877,-480.0,0.0002327,3]
[385931303,1758137432886,-480.0,0.0002327,3]
[385931304,1758137432896,-574.0,0.0002327,3]
[385931305,1758137432905,-480.0,0.0002327,3]
[385931306,1758137432919,-480.0,0.0002327,3]
[385931307,1758137432928,-480.0,0.0002327,3]
[385931308,1758137432937,-480.0,0.0002327,3]
[385931309,1758137432946,-480.0,0.0002327,3]
[385931310,1758137432955,-679.97,0.0002327,3]
[385931311,1758137432965,-572.52,0.0002327,3]
[385931312,1758137432975,-480.0,0.0002327,3]
[385931313,1758137432983,-480.0,0.0002327,3]
[385931314,1758137432993,-480.0,0.0002327,3]
[385931315,1758137433002,-480.0,0.0002327,3]
[385931316,1758137433012,-480.0,0.0002327,3]
[385931317,1758137433022,-506.43,0.0002327,3]
[385931318,1758137433031,-480.0,0.0002327,3]
[385931319,1758137433041,-865.35,0.0002327,3]
[385931320,1758137433050,-1241.0,0.0002327,3]
[385931321,1758137433060,-480.0,0.0002327,3]
[385931322,1758137433069,-480.0,0.0002327,3]
[385931323,1758137433080,-480.0,0.0002327,3]
[385931324,1758137433090,-480.0,0.0002327,3]
[385931325,1758137433100,-480.0,0.0002327,3]
[385931326,1758137433109,-480.0,0.0002327,3]
[385931327,1758137433119,-15898.12539135,0.0002327,2]
[385931328,1758137433129,-480.0,0.00023271,3]
[385931329,1758137433138,-579.14,0.00023271,3]
[385931330,1758137433148,-480.0,0.00023271,3]
[385931331,1758137433157,-480.0,0.00023271,3]
[385931332,1758137433170,-480.0,0.00023271,3]
[385931333,1758137433182,-480.0,0.00023271,3]
[385931334,1758137433194,-520.43,0.00023271,3]
[385931335,1758137433204,-480.0,0.00023271,3]
[385931336,1758137433214,-364.89735293,0.00023271,3]
[385931351,1758137438386,-500.0,0.00023269,2]
[385931352,1758137438396,-500.0,0.00023269,2]
[385931353,1758137438405,-500.0,0.00023269,2]
[385931354,1758137438415,-500.0,0.00023269,2]
[385931355,1758137438425,-238.591924,0.00023269,2]
[385931356,1758137438434,-453.331481,0.00023269,2]
[385931357,1758137438443,-500.0,0.00023269,2]
[385931358,1758137438453,-262.40575987,0.00023269,2]
[385931359,1758137438463,-500.0,0.00023269,2]
[385931360,1758137438471,-500.0,0.00023269,2]
[385931361,1758137438480,-500.0,0.00023269,2]
[385931362,1758137438490,-102.52923907,0.00023269,2]
[385931363,1758137438501,-397.47076093,0.00023269,2]
[385931364,1758137438511,-500.0,0.00023269,2]
[385931365,1758137438520,-352.52924927,0.00023269,2]
[385931366,1758137438539,-147.47075073,0.00023269,2]
[385931367,1758137438548,-500.0,0.00023269,2]
[385931368,1758137438557,-500.0,0.00023269,2]
[385931369,1758137438566,-500.0,0.00023269,2]
[385931370,1758137438575,-308.7284714,0.00023269,2]
[385931371,1758137438585,-500.0,0.00023269,2]
[385931372,1758137438594,-500.0,0.00023269,2]
[385931373,1758137438603,-500.0,0.00023269,2]
[385931374,1758137438613,-262.36110316,0.00023269,2]
[385931375,1758137438622,-500.0,0.00023269,2]
[385931376,1758137438631,-275.63199739,0.00023269,2]
[385931377,1758137438640,-500.0,0.00023269,2]
[385931378,1758137438650,-198.89040921,0.00023269,2]
[385931379,1758137438670,-301.10959079,0.00023269,2]
[385931380,1758137438680,-500.0,0.00023269,2]
[385931381,1758137438689,-500.0,0.00023269,2]
[385931382,1758137438699,-500.0,0.00023269,2]
[385931383,1758137438708,-500.0,0.00023269,2]
[385931384,1758137438717,-500.0,0.00023269,2]
[385931385,1758137438727,-500.0,0.00023269,2]
[385931386,1758137438736,-500.0,0.00023269,2]
[385931387,1758137438745,-500.0,0.00023269,2]
[385931388,1758137438755,-500.0,0.00023269,2]
[385931389,1758137438763,-205.65588227,0.00023269,2]
[385931390,1758137438773,-115.10264707,0.00023271,3]
[385931391,1758137438782,-480.0,0.00023271,3]
[385931392,1758137438792,-596.31,0.00023271,3]
[385931393,1758137438805,-480.0,0.00023271,3]
[385931394,1758137438817,-480.0,0.00023271,3]
[385931395,1758137438826,-480.0,0.00023272,3]
[385931396,1758137438836,-480.0,0.00023272,3]
[385931397,1758137438845,-2884.19,0.00023272,3]
[385931398,1758137438855,-500.0,0.00023273,2]
[385931399,1758137438867,-480.0,0.00023279,3]
[385931400,1758137438876,-153.62,0.00023279,3]
[385931401,1758137438888,-479.4,0.00023279,3]
[385931402,1758137438897,-480.0,0.00023279,3]
[385931403,1758137438907,-234.59,0.00023279,3]
[385931404,1758137438918,-480.0,0.00023279,3]
[385931405,1758137438927,-480.0,0.00023279,3]
[385931406,1758137438935,-150.99,0.00023279,3]
[385931407,1758137438945,-480.0,0.00023279,3]
[385931408,1758137438954,-480.0,0.00023279,3]
[385931409,1758137438963,-480.0,0.00023279,3]
[385931410,1758137438972,-480.0,0.00023279,3]
[385931411,1758137438981,-480.0,0.00023279,3]
[385931412,1758137438989,-480.0,0.00023279,3]
[385931413,1758137438998,-480.0,0.00023279,3]
[385931414,1758137439007,-480.0,0.00023279,3]
[385931415,1758137439016,-1481.95,0.00023279,3]
[385931416,1758137439025,-480.0,0.00023279,3]
[385931417,1758137439034,-480.0,0.00023279,3]
[385931418,1758137439044,-480.0,0.0002328,3]
[385931419,1758137439053,-595.36,0.0002328,3]
[385931420,1758137439062,-480.0,0.0002328,3]
[385931421,1758137439072,-480.0,0.0002328,3]
[385931422,1758137439081,-480.0,0.0002328,3]
[385931423,1758137439089,-480.0,0.00023282,3]
[385931424,1758137439099,-480.0,0.00023282,3]
[385931425,1758137439107,-480.0,0.00023282,3]
[385931426,1758137439117,-480.0,0.00023282,3]
[385931427,1758137439126,-480.0,0.00023282,3]
[385931428,1758137439135,-480.0,0.00023283,3]
[385931429,1758137439145,-1199.67,0.00023283,3]
[385931430,1758137439154,-8582.97,0.00023283,3]
[385931431,1758137439163,-160.0,0.0002331,2]
[385931432,1758137439174,-847.79063332,0.00023351,2]
[385931433,1758137439183,-480.0,0.00023384,3]
[385931434,1758137439193,-480.0,0.00023384,3]
[385931435,1758137439202,-704.33,0.00023384,3]
[385931436,1758137439212,-663.08,0.00023384,3]
[385931437,1758137439221,-165.72,0.00023529,2]
[385931438,1758137439230,-845.95,0.00023543,3]
[385931439,1758137439239,-480.0,0.00023543,3]
[385931440,1758137439248,-538.4,0.00023543,3]
[385931441,1758137439257,-789.77,0.00023543,3]
[385931442,1758137439266,-480.0,0.00023543,3]
[385931443,1758137439275,-480.0,0.00023543,3]
[385931444,1758137439284,-480.0,0.00023543,3]
[385931445,1758137439293,-480.0,0.00023543,3]
[385931446,1758137439300,-480.0,0.00023543,3]
[385931447,1758137439308,-630.89,0.00023543,3]
[385931448,1758137439317,-480.0,0.00023543,3]
[385931449,1758137439327,-480.0,0.00023543,3]
[385931450,1758137439336,-480.0,0.00023543,3]
[385931451,1758137439346,-602.82,0.00023543,3]
[385931452,1758137439355,-334.04701472,0.00023543,2]
[385931453,1758137439364,-574.17934398,0.00023543,2]
[385931454,1758137439373,-155.625,0.00023544,2]
[385931455,1758137439382,-420.64,0.00023544,3]
[385931456,1758137439391,-480.0,0.00023544,3]
[385931457,1758137439400,-364.37,0.00023544,3]
[385931458,1758137439409,-480.0,0.00023544,3]
[385931459,1758137439420,-480.0,0.00023544,3]
[385931460,1758137439429,-480.0,0.00023544,3]
[385931461,1758137439438,-363.11725606,0.00023544,3]
[385931462,1758137439447,-480.0,0.00023544,3]
[385931463,1758137439456,-480.0,0.00023544,3]
[385931464,1758137439465,-480.0,0.00023544,3]
[385931465,1758137439474,-546.0,0.00023544,3]
[385931466,1758137439483,-1103.56,0.00023544,3]
[385931467,1758137439491,-480.0,0.00023544,3]
[385931468,1758137439500,-480.0,0.00023544,3]
[385931469,1758137439510,-480.0,0.00023544,3]
[385931470,1758137439519,-480.0,0.00023544,3]
[385931471,1758137439528,-480.0,0.00023544,3]
[385931472,1758137439538,-480.0,0.00023544,3]
[385931473,1758137439547,-1823.2,0.00023544,3]
[385931474,1758137439556,-480.0,0.00023544,3]
[385931475,1758137439565,-480.0,0.00023544,3]
[385931476,1758137439573,-480.0,0.00023544,3]
[385931477,1758137439583,-574.0,0.00023544,3]
[385931478,1758137439592,-480.0,0.00023544,3]
[385931479,1758137439601,-480.0,0.00023544,3]
[385931480,1758137439610,-480.0,0.00023544,3]
[385931481,1758137439619,-679.97,0.00023544,3]
[385931482,1758137439629,-572.52,0.00023544,3]
[385931483,1758137439638,-480.0,0.00023544,3]
[385931484,1758137439647,-480.0,0.00023544,3]
[385931485,1758137439656,-480.0,0.00023544,3]
[385931486,1758137439668,-252.55,0.00023544,3]
[385931487,1758137439677,-321.57,0.00023544,3]
[385931488,1758137439686,-865.35,0.00023544,3]
[385931489,1758137439695,-1241.0,0.00023544,3]
[385931490,1758137439704,-480.0,0.00023544,3]
[385931491,1758137439714,-480.0,0.00023544,3]
[385931492,1758137439723,-3262.47,0.00023544,2]
[385931493,1758137439732,-621.99,0.00023544,3]
[385931494,1758137439741,-480.0,0.00023544,3]
[385931495,1758137439750,-480.0,0.00023544,3]
[385931496,1758137439759,-480.0,0.00023545,3]
[385931497,1758137439768,-480.0,0.00023545,3]
[385931498,1758137439778,-480.0,0.00023545,3]
[385931499,1758137439787,-480.0,0.00023545,3]
[385931500,1758137439796,-480.0,0.00023546,3]
[385931501,1758137439805,-311.04,0.00023546,3]
[385931502,1758137439816,-2884.19,0.00023546,3]
[385931503,1758137439825,-480.0,0.00023553,3]
[385931504,1758137439834,-480.0,0.00023553,3]
[385931505,1758137439842,-480.0,0.00023553,3]
[385931506,1758137439850,-480.0,0.00023553,3]
[385931507,1758137439859,-174.27467724,0.00023553,3]
[385931508,1758137439868,-480.0,0.00023553,3]
[385931509,1758137439878,-480.0,0.00023553,3]
[385931510,1758137439887,-207.66,0.00023553,3]
[385931511,1758137439896,-1481.95,0.00023553,3]
[385931512,1758137439905,-492.17479989,0.00023553,3]
[385931514,1758137440003,-480.0,0.00023553,3]
[385931515,1758137440013,-480.0,0.00023554,3]
[385931516,1758137440022,-595.36,0.00023554,3]
[385931517,1758137440031,-236.65,0.00023554,3]
[385931518,1758137440039,-480.0,0.00023554,3]
[385931519,1758137440047,-480.0,0.00023554,3]
[385931520,1758137440054,-258.38,0.00023556,3]
[385931521,1758137440063,-480.0,0.00023556,3]
[385931522,1758137440072,-480.0,0.00023556,3]
[385931523,1758137440081,-480.0,0.00023556,3]
[385931524,1758137440090,-480.0,0.00023557,3]
[385931526,1758137440100,-1199.67,0.00023557,3]
[385931528,1758137440109,-8582.97,0.00023557,3]
[385931530,1758137440119,-500.0,0.00023573,2]
[385931532,1758137440128,-500.0,0.00023573,2]
[385931534,1758137440137,-500.0,0.00023573,2]
[385931536,1758137440146,-501.45101962,0.00023573,2]
[385931538,1758137440154,-503.49835,0.00023573,2]
[385931540,1758137440163,-500.0,0.00023573,2]
[385931542,1758137440172,-500.0,0.00023573,2]
[385931543,1758137440182,-500.0,0.00023573,2]
[385931545,1758137440191,-500.0,0.00023573,2]
[385931547,1758137440200,-506.61713057,0.00023573,2]
[385931549,1758137440209,-500.0,0.00023573,2]
[385931551,1758137440219,-576.83105367,0.00023603,2]
[385931553,1758137440228,-160.0,0.0002365,3]
[385931555,1758137440237,-520.14,0.00023658,3]
[385931557,1758137440246,-480.0,0.00023658,3]
[385931559,1758137440256,-704.33,0.00023658,3]
[385931561,1758137440265,-663.08,0.00023658,3]
[385931564,1758137440276,-600.0,0.00023746,20]
[385931566,1758137440286,-629.47233631,0.00023803,2]
[385931568,1758137440295,-648.4,0.00023808,3]
[385931570,1758137440304,-845.95,0.00023817,3]
[385931572,1758137440313,-480.0,0.00023817,3]
[385931573,1758137440323,-538.4,0.00023817,3]
[385931575,1758137440332,-789.77,0.00023817,3]
[385931577,1758137440341,-480.0,0.00023817,3]
[385931579,1758137440350,-480.0,0.00023817,3]
[385931581,1758137440359,-480.0,0.00023817,3]
[385931583,1758137440368,-480.0,0.00023817,3]
[385931585,1758137440377,-480.0,0.00023817,3]
[385931587,1758137440386,-630.89,0.00023817,3]
[385931589,1758137440396,-480.0,0.00023817,3]
[385931591,1758137440405,-480.0,0.00023817,3]
[385931593,1758137440414,-480.0,0.00023817,3]
[385931595,1758137440423,-455.28,0.00023818,3]
[385931597,1758137440433,-397.81417535,0.00023818,3]
[385931599,1758137440442,-480.0,0.00023818,3]
[385931601,1758137440451,-480.0,0.00023818,3]
[385931603,1758137440461,-480.0,0.00023818,3]
[385931605,1758137440470,-480.0,0.00023818,3]
[385931608,1758137440479,-1103.56,0.00023818,3]
[385931609,1758137440488,-480.0,0.00023818,3]
[385931611,1758137440498,-480.0,0.00023818,3]
[385931614,1758137440508,-480.0,0.00023818,3]
[385931615,1758137440517,-480.0,0.00023818,3]
[385931617,1758137440527,-310.88,0.00023818,3]
[385931619,1758137440536,-1823.2,0.00023818,3]
[385931621,1758137440546,-406.81,0.00023818,3]
[385931623,1758137440555,-480.0,0.00023818,3]
[385931625,1758137440564,-480.0,0.00023818,3]
[385931627,1758137440574,-574.0,0.00023818,3]
[385931629,1758137440583,-480.0,0.00023818,3]
[385931631,1758137440593,-480.0,0.00023818,3]
[385931633,1758137440603,-480.0,0.00023818,3]
[385931635,1758137440612,-679.97,0.00023818,3]
[385931637,1758137440621,-572.52,0.00023818,3]
[385931639,1758137440632,-480.0,0.00023818,3]
[385931641,1758137440641,-480.0,0.00023818,3]
[385931643,1758137440651,-480.0,0.00023818,3]
[385931645,1758137440660,-865.35,0.00023818,3]
[385931647,1758137440671,-1241.0,0.00023818,3]
[385931649,1758137440680,-480.0,0.00023818,3]
[385931651,1758137440689,-480.0,0.00023818,3]
[385931653,1758137440698,-480.0,0.00023818,3]
[385931655,1758137440707,-278.88,0.00023818,3]
[385931657,1758137440716,-480.0,0.00023819,3]
[385931659,1758137440726,-480.0,0.00023819,3]
[385931661,1758137440736,-480.0,0.00023819,3]
[385931663,1758137440745,-480.0,0.00023819,3]
[385931665,1758137440754,-480.23,0.0002382,3]
[385931667,1758137440763,-2884.19,0.0002382,3]
[385931669,1758137440773,-561.24,0.00023821,3]
[385931671,1758137440782,-280.62,0.00023821,3]
[385931673,1758137440791,-216.12,0.00023821,3]
[385931675,1758137440800,-480.0,0.00023827,3]
[385931677,1758137440810,-480.0,0.00023827,3]
[385931679,1758137440823,-344.97,0.00023827,3]
[385931681,1758137440832,-506.13,0.00023827,3]
[385931683,1758137440842,-480.0,0.00023827,3]
[385931685,1758137440851,-1481.95,0.00023827,3]